bitfinex/quotes_SOLUSD_20260302
["timestamp","ask_amount","ask_price","bid_price","bid_amount"]
[1772436468378,4.79799808,82.87,82.831,2.56010426]
[1772436469604,4.79799808,82.86,82.833,2.56010426]
[1772436471609,4.79799808,82.86,82.834,12.07233744]
[1772436471798,16.86666149,82.86,82.835,2.56010426]
[1772436471992,4.79799808,82.85,82.828,2.56010426]
[1772436472190,4.79799808,82.84,82.828,2.56010426]
[1772436472591,4.80062408,82.84,82.828,2.56010426]
[1772436473202,4.80062408,82.84,82.815,2.56010426]
[1772436473510,4.80062408,82.84,82.817,2.56010426]
[1772436473991,12.07160878,82.839,82.817,2.56010426]
[1772436474490,4.80062408,82.84,82.817,2.56010426]
[1772436475104,4.80062408,82.84,82.819,2.56010426]
[1772436476114,16.87211864,82.84,82.819,2.56010426]
[1772436477309,4.80062408,82.84,82.819,2.56010426]
[1772436477814,30.17411508,82.853,82.819,2.56010426]
[1772436478015,4.80062408,82.84,82.819,2.56010426]
[1772436480012,4.80062408,82.84,82.821,2.56010426]
[1772436482297,4.80062408,82.85,82.823,2.56010426]
[1772436482709,4.80062408,82.84,82.823,2.56010426]
[1772436483820,4.80062408,82.84,82.825,2.56010426]
[1772436484317,4.80062408,82.84,82.81,2.56010426]
[1772436484510,4.80062408,82.83,82.814,2.56010426]
[1772436484699,4.80062408,82.84,82.814,2.56010426]
[1772436486712,4.80062408,82.84,82.815,12.07510716]
[1772436486908,4.80062408,82.84,82.816,2.56010426]
[1772436488924,4.80062408,82.84,82.818,2.56010426]
[1772436489121,16.87211154,82.84,82.818,2.56010426]
[1772436489426,4.80062408,82.83,82.818,2.56010426]
[1772436489918,12.07086553,82.845,82.818,2.56010426]
[1772436490110,4.80062408,82.84,82.818,2.56010426]
[1772436491122,4.80062408,82.84,82.82,2.56010426]
[1772436492124,4.80062408,82.84,82.821,12.07423238]
[1772436492320,4.80062408,82.84,82.822,2.56010426]
[1772436492825,4.80062408,82.87,82.831,2.56010426]
[1772436493923,4.80062408,82.85,82.833,2.56010426]
[1772436495432,4.80062408,82.85,82.828,2.56010426]
[1772436496227,4.80062408,82.85,82.829,12.07306619]
[1772436496430,4.80062408,82.85,82.83,2.56010426]
[1772436496819,30.16860253,82.868,82.83,2.56010426]
[1772436497019,4.80062408,82.85,82.83,2.56010426]
[1772436497218,4.80062408,82.86,82.83,2.56010426]
[1772436498018,4.30062408,82.86,82.83,2.56010426]
[1772436498213,4.30062408,82.86,82.832,2.56010426]
[1772436499734,4.80062408,82.87,82.832,2.56010426]
[1772436499929,4.80062408,82.87,82.834,2.56010426]
[1772436500841,12.06723865,82.869,82.834,2.56010426]
[1772436501017,11.56723865,82.869,82.835,2.56010426]
[1772436501217,4.80062408,82.86,82.835,2.56010426]
[1772436501517,4.80062408,82.85,82.829,2.56010426]
[1772436501717,4.80062408,82.86,82.829,2.56010426]
[1772436501935,16.86922617,82.86,82.831,2.56010426]
[1772436502348,4.80062408,82.86,82.831,2.56010426]
[1772436503925,12.06869501,82.859,82.833,2.56010426]
[1772436504129,4.80062408,82.85,82.833,2.56010426]
[1772436504536,12.06869501,82.859,82.833,2.56010426]
[1772436504837,4.80062408,82.85,82.833,2.56010426]
[1772436507036,4.80062408,82.85,82.824,2.56010426]
[1772436508145,16.87074823,82.85,82.826,2.56010426]
[1772436509139,4.80062408,82.84,82.814,2.56010426]
[1772436509350,4.80062408,82.84,82.813,12.07528315]
[1772436509647,4.80062408,82.84,82.813,14.63538741]
[1772436510145,4.80062408,82.84,82.814,2.56010426]
[1772436510340,4.80062408,82.83,82.802,2.56010426]
[1772436510544,12.07160878,82.839,82.804,2.56010426]
[1772436510545,4.80062408,82.82,82.804,2.56010426]
[1772436510922,4.80062408,82.83,82.804,2.56010426]
[1772436511123,4.80062408,82.82,82.804,2.56010426]
[1772436511323,4.80062408,82.83,82.804,2.56010426]
[1772436512643,4.80062408,82.83,82.805,12.07656542]
[1772436512945,4.80062408,82.83,82.806,2.56010426]
[1772436513651,4.80062408,82.82,82.8,2.56010426]
[1772436513953,4.80062408,82.84,82.801,2.56010426]
[1772436514528,4.80062408,82.83,82.801,2.56010426]
[1772436514847,4.80062408,82.83,82.803,2.56010426]
[1772436516350,16.87357137,82.83,82.803,2.56010426]
[1772436516847,16.87357137,82.83,82.804,12.07671126]
[1772436517045,4.80062408,82.83,82.805,2.56010426]
[1772436518250,4.80062408,82.83,82.807,2.56010426]
[1772436520047,4.80062408,82.82,82.798,2.56010426]
[1772436520749,12.07452396,82.819,82.797,12.07759298]
[1772436521631,12.07102591,82.843,82.799,2.56010426]
[1772436521855,4.80062408,82.83,82.801,2.56010426]
[1772436522042,4.80062408,82.84,82.801,2.56010426]
[1772436523151,4.80062408,82.84,82.811,2.56010426]
[1772436523354,4.80062408,82.86,82.83,4.80062408]
[1772436523532,4.80062408,82.86,82.831,2.56010426]
[1772436524560,12.06869501,82.859,82.833,2.56010426]
[1772436526755,4.80062408,82.86,82.835,2.56010426]
[1772436527338,16.86923876,82.86,82.835,2.56010426]
[1772436528562,16.86923876,82.86,82.837,2.56010426]
[1772436529862,16.86923876,82.86,82.839,2.56010426]
[1772436531540,12.06726248,82.869,82.839,2.56010426]
[1772436532049,12.06726248,82.869,82.84,12.07146306]
[1772436532238,12.06726248,82.869,82.841,2.56010426]
[1772436533263,12.06726248,82.869,82.843,2.56010426]
[1772436535043,4.79847728,82.87,82.845,2.56010426]
[1772436537039,4.79847728,82.87,82.847,2.56010426]
[1772436539172,4.79847728,82.88,82.851,2.56010426]
[1772436540359,4.79847728,82.87,82.841,2.56010426]
[1772436540668,4.79847728,82.87,82.842,2.56010426]
[1772436541674,4.79847728,82.89,82.844,2.56010426]
[1772436541675,4.79847728,82.86,82.844,2.56010426]
[1772436543866,42.22514446,82.889,82.846,2.56010426]
[1772436543867,16.86558798,82.87,82.846,2.56010426]
[1772436545250,4.79847728,82.86,82.846,2.56010426]
[1772436546155,4.79847728,82.86,82.802,103.2]
[1772436546156,60.49941893,82.998,82.831,2.56010426]
[1772436546453,4.79847728,82.91,82.871,2.56010426]
[1772436546658,4.79847728,82.9,82.871,2.56010426]
[1772436547077,4.79847728,82.89,82.871,2.56010426]
[1772436547853,4.79847728,82.9,82.873,2.56010426]
[1772436549574,4.79847728,82.91,82.881,2.56010426]
[1772436549987,0.1,82.95,82.901,2.56010426]
[1772436550182,0.1,82.95,82.921,2.56010426]
[1772436550555,0.1,82.95,82.931,2.56010426]
[1772436551077,0.1,82.95,82.89,4.79847728]
[1772436551078,2.55155595,82.939,82.89,4.79847728]
[1772436551282,7.35003323,82.93,82.89,4.79847728]
[1772436551668,4.79847728,82.93,82.9,4.79847728]
[1772436551984,4.79847728,82.93,82.901,12.06258066]
[1772436552877,4.79847728,82.93,82.902,2.52303271]
[1772436553087,2.55155595,82.929,82.902,2.52303271]
[1772436553487,4.79847728,82.94,82.902,2.52303271]
[1772436553690,2.55155595,82.939,82.902,2.52303271]
[1772436553986,4.79847728,82.93,82.902,2.52303271]
[1772436554292,4.79847728,82.93,82.904,2.52303271]
[1772436555269,4.79847728,82.92,82.904,2.52303271]
[1772436555683,2.3527714,82.928,82.904,2.52303271]
[1772436555991,4.79847728,82.92,82.904,2.52303271]
[1772436556163,2.3527714,82.909,82.874,2.42151087]
[1772436556367,4.79847728,82.92,82.874,2.42151087]
[1772436556368,4.79847728,82.9,82.874,2.42151087]
[1772436556879,4.79847728,82.89,82.874,2.42151087]
[1772436560288,4.79847728,82.89,82.834,42.25318105]
[1772436560289,2.37105948,82.879,82.852,2.56019171]
[1772436560585,4.79847728,82.87,82.852,2.56019171]
[1772436565083,7.16953676,82.87,82.848,2.56019171]
[1772436565780,4.79847728,82.86,82.848,2.56019171]
[1772436566376,4.79847728,82.87,82.841,2.56019171]
[1772436567064,4.79847728,82.87,82.843,2.56019171]
[1772436568191,4.79847728,82.89,82.83,4.79847728]
[1772436568192,2.37105948,82.888,82.845,2.56019171]
[1772436568481,2.37105948,82.888,82.851,2.56019171]
[1772436569887,4.79847728,82.89,82.861,2.56019171]
[1772436570069,7.16953676,82.89,82.861,2.56019171]
[1772436570264,2.37105948,82.889,82.863,2.56019171]
[1772436573491,2.37105948,82.879,82.845,2.56019171]
[1772436573794,4.79847728,82.88,82.759,48.33267403]
[1772436573795,4.79847728,82.86,82.838,2.56019171]
[1772436573999,4.79847728,82.87,82.841,2.56019171]
[1772436574388,4.79847728,82.88,82.851,2.56019171]
[1772436575193,2.37105948,82.879,82.851,2.56019171]
[1772436576293,2.37105948,82.879,82.853,2.56019171]
[1772436577183,12.06592823,82.878,82.853,2.56019171]
[1772436577379,12.06592823,82.878,82.847,12.07035557]
[1772436577380,2.37105948,82.869,82.847,12.07035557]
[1772436579197,2.37105948,82.869,82.847,14.63054728]
[1772436580200,2.37105948,82.869,82.848,2.56019171]
[1772436580502,2.37105948,82.869,82.847,12.07035557]
[1772436580503,2.37105948,82.869,82.849,12.07015172]
[1772436582096,2.37105948,82.869,82.843,2.56019171]
[1772436582402,2.37105948,82.849,82.81,2.56019171]
[1772436582594,4.79847728,82.83,82.811,2.56019171]
[1772436583494,2.37105948,82.835,82.811,2.56019171]
[1772436584100,2.37105948,82.835,82.812,12.0755446]
[1772436584901,4.79847728,82.83,82.812,12.0755446]
[1772436586493,2.37105948,82.835,82.812,12.0755446]
[1772436588400,2.37105948,82.835,82.812,2.53489042]
[1772436591998,7.24581233,82.84,82.814,2.53489042]
[1772436592196,2.44733505,82.839,82.814,2.53489042]
[1772436594790,2.44733505,82.839,82.815,14.60999758]
[1772436595305,2.44733505,82.839,82.816,2.53489042]
[1772436596094,2.44733505,82.839,82.817,12.07481555]
[1772436597612,2.44733505,82.839,82.817,14.60970597]
[1772436598011,2.44733505,82.839,82.818,2.53489042]
[1772436598415,2.44733505,82.839,82.819,12.07452396]
[1772436600192,9.59989344,82.86,82.8,4.80141616]
[1772436600193,2.44733505,82.829,82.8,4.80141616]
[1772436600509,2.44733505,82.825,82.794,2.53489042]
[1772436601391,4.80141616,82.82,82.794,2.53489042]
[1772436601696,2.44733505,82.819,82.794,2.53489042]
[1772436601893,2.44733505,82.819,82.795,12.07802403]
[1772436602091,2.44733505,82.819,82.796,2.53489042]
[1772436602512,2.44733505,82.817,82.791,14.61349461]
[1772436602710,2.44733505,82.817,82.792,2.53489042]
[1772436603017,2.44733505,82.847,82.811,2.53489042]
[1772436603211,2.44733505,82.847,82.821,2.53489042]
[1772436603718,2.44733505,82.86,82.831,2.53489042]
[1772436604105,2.44733505,82.86,82.833,2.53489042]
[1772436604990,2.44733505,82.859,82.833,2.53489042]
[1772436605693,14.51603006,82.859,82.832,12.07262893]
[1772436605914,14.51603006,82.859,82.83,4.80141616]
[1772436605915,2.44733505,82.849,82.82,7.33630658]
[1772436606219,2.44733505,82.839,82.818,2.53489042]
[1772436606515,2.44733505,82.829,82.8,4.80141616]
[1772436606819,2.44733505,82.829,82.801,2.53489042]
[1772436608596,2.44733505,82.829,82.802,12.07700297]
[1772436609012,2.44733505,82.829,82.802,14.61189339]
[1772436610001,2.44733505,82.829,82.803,2.53489042]
[1772436610714,2.44733505,82.829,82.804,12.07671126]
[1772436612116,2.44733505,82.829,82.806,12.07641958]
[1772436612617,2.44733505,82.864,82.821,2.53489042]
[1772436612816,2.44733505,82.864,82.831,2.53489042]
[1772436613026,2.44733505,82.864,82.84,4.80141616]
[1772436613322,2.44733505,82.864,82.836,2.53489042]
[1772436614218,2.44733505,82.864,82.837,14.60679065]
[1772436614926,2.44733505,82.864,82.838,2.36074018]
[1772436615117,2.44733505,82.864,82.839,12.07160878]
[1772436615929,2.49858246,82.859,82.826,2.36074018]
[1772436616110,2.49858246,82.849,82.824,12.07368451]
[1772436616423,2.49858246,82.849,82.824,14.43442469]
[1772436617923,2.49858246,82.849,82.825,2.53621597]
[1772436618129,2.4181535,82.858,82.825,2.53621597]
[1772436619207,2.4181535,82.856,82.827,2.53621597]
[1772436619410,2.4181535,82.856,82.831,2.53621597]
[1772436620622,2.4181535,82.849,82.826,12.07350348]
[1772436620819,2.4181535,82.849,82.827,2.53621597]
[1772436621411,2.4181535,82.849,82.828,12.07321195]
[1772436623933,2.4181535,82.849,82.828,2.53621597]
[1772436624435,4.80141616,82.86,82.831,2.53621597]
[1772436624617,2.4181535,82.861,82.831,2.53621597]
[1772436624931,30.16655996,82.874,82.831,2.53621597]
[1772436624932,2.4181535,82.859,82.831,2.53621597]
[1772436625307,2.4181535,82.859,82.824,2.53621597]
[1772436625729,2.4181535,82.849,82.824,2.53621597]
[1772436626117,2.4181535,82.849,82.826,2.53621597]
[1772436626429,2.4181535,82.855,82.826,2.53621597]
[1772436627515,2.4181535,82.853,82.826,2.53621597]
[1772436627927,7.21956966,82.85,82.826,2.53621597]
[1772436628626,2.4181535,82.849,82.827,12.07335772]
[1772436629833,2.4181535,82.847,82.809,2.53621597]
[1772436630015,2.4181535,82.839,82.81,16.87725241]
[1772436630416,2.4181535,82.839,82.81,14.61205222]
[1772436630932,2.4181535,82.839,82.812,12.0755446]
[1772436631233,12.0717545,82.838,82.812,12.0755446]
[1772436631419,2.4181535,82.837,82.812,12.0755446]
[1772436631926,2.4181535,82.837,82.812,14.61176057]
[1772436632640,2.4181535,82.837,82.813,2.53621597]
[1772436633529,2.4181535,82.837,82.814,12.07525297]
[1772436633728,14.48736348,82.856,82.821,2.53621597]
[1772436633931,2.4181535,82.855,82.821,2.53621597]
[1772436634132,2.4181535,82.855,82.831,2.53621597]
[1772436636542,2.4181535,82.853,82.821,12.07423238]
[1772436636734,12.06942332,82.854,82.821,12.07423238]
[1772436636735,2.4181535,82.849,82.821,12.07423238]
[1772436637740,2.4181535,82.839,82.806,2.53621597]
[1772436638022,2.4181535,82.839,82.811,2.53621597]
[1772436639145,2.4181535,82.839,82.813,2.53621597]
[1772436640448,2.4181535,82.837,82.813,2.53621597]
[1772436640944,2.4181535,82.829,82.799,2.53621597]
[1772436642250,2.4181535,82.829,82.801,2.53621597]
[1772436644436,2.4181535,82.829,82.803,2.53621597]
[1772436645834,2.4181535,82.829,82.804,14.61292723]
[1772436646035,2.4181535,82.829,82.805,2.53621597]
[1772436648056,2.36679279,82.849,82.821,2.34155715]
[1772436648635,2.36679279,82.848,82.821,2.34155715]
[1772436649355,2.36679279,82.848,82.811,2.34155715]
[1772436650039,2.36679279,82.839,82.811,12.07569042]
[1772436650555,2.36679279,82.839,82.812,2.34155715]
[1772436652343,2.36679279,82.839,82.814,2.34155715]
[1772436654256,2.36679279,82.839,82.816,2.34155715]
[1772436655242,2.36679279,82.839,82.81,4.80141616]
[1772436655243,2.36679279,82.839,82.817,12.07481555]
[1772436655446,2.36679279,82.839,82.817,14.4163727]
[1772436657156,2.36679279,82.839,82.818,2.34155715]
[1772436657658,2.36679279,82.839,82.819,14.41608111]
[1772436660942,2.36679279,82.839,82.82,2.34155715]
[1772436662468,2.36679279,82.839,82.8,4.80047262]
[1772436662469,2.36679279,82.829,82.805,12.07646752]
[1772436662943,2.36679279,82.829,82.806,2.34155715]
[1772436663265,4.80047262,82.83,82.806,2.34155715]
[1772436663447,2.36679279,82.84,82.811,2.34155715]
[1772436663647,2.36679279,82.84,82.805,12.07646752]
[1772436663648,2.36679279,82.849,82.821,2.34155715]
[1772436664060,2.36679279,82.894,82.821,2.34155715]
[1772436664269,2.36679279,82.899,82.842,0.28432314]
[1772436664442,2.36679279,82.879,82.851,2.34155715]
[1772436665054,2.36679279,82.869,82.841,12.07131734]
[1772436665564,2.36679279,82.869,82.841,14.41287449]
[1772436666372,2.36679279,82.859,82.831,12.07273306]
[1772436666869,2.36679279,82.859,82.832,2.34155715]
[1772436667243,2.36679279,82.859,82.833,12.07248318]
[1772436670173,2.36679279,82.859,82.835,12.0721917]
[1772436670981,2.36679279,82.887,82.841,2.34155715]
[1772436671151,2.36679279,82.879,82.841,2.34155715]
[1772436671869,2.36679279,82.897,82.861,2.34155715]
[1772436672070,2.36679279,82.897,82.835,42.25267096]
[1772436672071,2.36679279,82.879,82.855,2.34155715]
[1772436672271,2.36679279,82.879,82.856,12.06913198]
[1772436672949,2.36679279,82.869,82.851,12.06971987]
[1772436673374,2.36679279,82.869,82.846,12.07051509]
[1772436673569,2.36679279,82.869,82.847,2.34155715]
[1772436673752,2.36679279,82.879,82.847,2.34155715]
[1772436674369,2.36679279,82.869,82.848,12.07029741]
[1772436674884,4.80047262,82.9,82.861,2.43333165]
[1772436675384,4.80047262,82.9,82.871,2.43333165]
[1772436676185,4.80047262,82.9,82.872,12.06680181]
[1772436676363,12.06199411,82.906,82.872,12.06680181]
[1772436676364,12.06199411,82.906,82.873,2.43333165]
[1772436676888,2.39621645,82.905,82.873,2.43333165]
[1772436677063,2.50448743,82.899,82.873,2.43333165]
[1772436678390,4.80047262,82.92,82.86,4.80047262]
[1772436678391,2.50448743,82.919,82.891,2.43768656]
[1772436680897,2.50448743,82.917,82.891,2.43768656]
[1772436681275,2.50448743,82.929,82.893,2.43768656]
[1772436682074,12.05689823,82.941,82.901,2.43768656]
[1772436682408,2.50448743,82.939,82.911,2.43768656]
[1772436683101,2.50448743,82.939,82.913,2.43768656]
[1772436683790,2.50448743,82.939,82.921,2.43768656]
[1772436683970,2.60448743,82.94,82.913,2.43768656]
[1772436685187,2.60448743,82.94,82.915,2.43768656]
[1772436685386,0.1,82.95,82.931,2.43768656]
[1772436686496,4.90047262,82.96,82.941,2.43768656]
[1772436686497,0.1,82.96,82.941,2.43768656]
[1772436686703,2.50448743,82.958,82.926,2.43768656]
[1772436686898,0.1,82.96,82.941,2.43768656]
[1772436687100,0.1,82.97,82.943,2.43768656]
[1772436687492,0.1,82.97,82.951,2.43768656]
[1772436689392,30.12263718,82.995,82.951,2.43768656]
[1772436689393,4.90047262,82.99,82.961,2.43768656]
[1772436689797,0.1,82.99,82.961,2.43768656]
[1772436690000,4.90047262,82.99,82.961,2.43768656]
[1772436691199,0.1,82.99,82.961,2.43768656]
[1772436691397,0.1,82.99,82.973,2.43768656]
[1772436691703,0.1,83.0,82.973,2.43768656]
[1772436692309,2.50448743,82.979,82.953,2.43768656]
[1772436692503,2.50448743,82.969,82.94,2.43768656]
[1772436692899,4.80047262,82.97,82.94,2.43768656]
[1772436693214,4.80047262,82.96,82.94,2.43768656]
[1772436693899,30.12877343,82.978,82.929,12.05836548]
[1772436693900,4.80047262,82.95,82.929,12.05836548]
[1772436694219,2.50448743,82.959,82.929,12.05836548]
[1772436694799,2.50448743,82.959,82.93,11.39906715]
[1772436695916,2.50448743,82.959,82.933,2.43768656]
[1772436696910,2.50448743,82.959,82.91,3.69383402]
[1772436696911,11.39906715,82.94,82.917,2.43768656]
[1772436697120,2.50448743,82.949,82.917,2.43768656]
[1772436697997,2.50448743,82.949,82.921,2.43768656]
[1772436699518,2.50448743,82.967,82.931,2.43768656]
[1772436699714,2.50448743,82.966,82.931,2.43768656]
[1772436700212,2.50448743,82.966,82.933,2.43768656]
[1772436700834,2.50448743,82.977,82.941,2.43768656]
[1772436701338,11.39906715,82.98,82.951,2.43768656]
[1772436701537,2.50448743,82.985,82.951,2.43768656]
[1772436703022,2.50448743,82.993,82.961,2.43768656]
[1772436703420,11.49906715,83.0,82.952,42.19307551]
[1772436703421,2.50448743,82.999,82.954,2.43768656]
[1772436703719,2.50448743,82.999,82.952,42.19307551]
[1772436703720,2.50448743,82.989,82.96,11.39906715]
[1772436704031,11.39906715,82.98,82.956,2.43768656]
[1772436704216,2.50448743,82.979,82.952,44.63076207]
[1772436704416,2.50448743,82.979,82.953,2.43768656]
[1772436705033,2.50448743,82.979,82.955,2.43768656]
[1772436705412,2.50448743,82.989,82.96,11.39906715]
[1772436705618,2.50448743,82.989,82.961,2.43768656]
[1772436706033,11.49906715,83.0,82.971,2.43768656]
[1772436706315,11.59906715,83.03,82.991,2.43768656]
[1772436706524,11.59906715,83.02,82.991,2.43768656]
[1772436707133,11.59906715,83.02,82.99,11.39906715]
[1772436707134,11.59906715,83.02,82.992,12.04935415]
[1772436707319,2.42220655,83.009,82.98,11.39906715]
[1772436707826,11.39906715,83.01,82.98,11.39906715]
[1772436708136,2.42220655,83.009,82.97,11.39906715]
[1772436708962,2.42220655,82.999,82.964,12.05342076]
[1772436709240,2.42220655,82.979,82.951,12.05530976]
[1772436709545,11.39906715,82.98,82.952,2.40251223]
[1772436709843,2.42220655,82.98,82.952,2.40251223]
[1772436711446,2.42220655,82.98,82.954,2.40251223]
[1772436713154,2.42220655,82.979,82.948,12.05572193]
[1772436713461,2.42220655,82.978,82.951,12.05530976]
[1772436714963,2.42220655,82.978,82.93,3.69383402]
[1772436714964,2.42220655,82.959,82.93,2.40251223]
[1772436715451,2.42220655,82.959,82.931,2.40251223]
[1772436715642,2.42220655,82.959,82.933,2.40251223]
[1772436718652,2.42220655,82.949,82.925,12.05908953]
[1772436720187,2.42220655,82.949,82.925,14.46160176]
[1772436720347,2.42220655,82.949,82.926,2.40251223]
[1772436720538,2.42220655,82.949,82.927,14.46131093]
[1772436721250,2.42220655,82.949,82.927,12.0587987]
[1772436721556,2.42220655,82.947,82.922,2.40251223]
[1772436722748,2.42220655,82.947,82.923,14.46139548]
[1772436723461,2.42220655,82.947,82.924,2.4020151]
[1772436723763,2.44520728,82.958,82.931,2.4020151]
[1772436725174,2.44520728,82.949,82.917,2.4020151]
[1772436725537,2.44520728,82.939,82.916,12.06039847]
[1772436725744,2.44520728,82.939,82.911,2.4020151]
[1772436726844,11.39768633,82.95,82.911,2.4020151]
[1772436727043,2.44520728,82.949,82.912,42.2134311]
[1772436727260,2.44520728,82.949,82.913,2.4020151]
[1772436728143,2.44520728,82.949,82.915,2.4020151]
[1772436729151,2.44520728,82.955,82.931,2.4020151]
[1772436729954,2.44520728,82.962,82.931,2.4020151]
[1772436730368,2.44520728,82.962,82.933,2.4020151]
[1772436730567,2.44520728,82.959,82.933,2.4020151]
[1772436731955,2.44520728,82.966,82.933,2.4020151]
[1772436732162,2.44520728,82.969,82.941,2.4020151]
[1772436732471,2.44520728,82.969,82.942,14.45863297]
[1772436732675,2.44520728,82.969,82.943,2.4020151]
[1772436733857,2.44520728,82.969,82.942,12.05661787]
[1772436734074,2.44520728,82.969,82.914,60.30344694]
[1772436734075,2.44520728,82.949,82.918,12.06010757]
[1772436734377,11.39768633,82.94,82.918,14.46212267]
[1772436734762,11.39768633,82.94,82.919,2.4564023]
[1772436736069,2.44520728,82.943,82.92,12.05981669]
[1772436736571,2.44520728,82.943,82.92,14.51621899]
[1772436738869,2.44520728,82.943,82.92,12.05981669]
[1772436739083,2.44520728,82.943,82.921,2.39888211]
[1772436739280,2.31919476,82.949,82.921,2.39888211]
[1772436739685,2.31919476,82.949,82.922,14.45840792]
[1772436739867,2.31919476,82.949,82.923,2.39888211]
[1772436741080,4.78864096,82.94,82.922,12.05952581]
[1772436741387,2.31919476,82.942,82.922,12.05952581]
[1772436741566,2.31919476,82.942,82.923,2.39888211]
[1772436741766,2.31919476,82.942,82.924,14.45811707]
[1772436742193,2.31919476,82.949,82.925,2.39888211]
[1772436744268,2.31919476,82.947,82.924,12.05923496]
[1772436744584,4.78864096,82.94,82.924,12.05923496]
[1772436745088,2.31919476,82.941,82.924,14.45811707]
[1772436746371,2.31919476,82.949,82.925,2.39888211]
[1772436748094,2.31919476,82.949,82.926,12.05894411]
[1772436748293,2.31919476,82.949,82.927,2.39888211]
[1772436749698,2.31919476,82.949,82.928,12.05865328]
[1772436749895,2.31919476,82.949,82.924,12.05921244]
[1772436750075,2.31919476,82.949,82.925,2.39888211]
[1772436750470,12.05574576,82.948,82.924,12.05921244]
[1772436750695,2.31919476,82.947,82.924,12.05921244]
[1772436751699,2.31919476,82.947,82.925,2.39888211]
[1772436751881,2.31919476,82.947,82.926,12.05894411]
[1772436752488,2.31919476,82.947,82.922,12.0594966]
[1772436752881,2.31919476,82.939,82.922,12.0594966]
[1772436754102,2.31919476,82.939,82.914,2.39888211]
[1772436754691,2.31919476,82.939,82.911,12.06112578]
[1772436755897,2.31919476,82.939,82.911,2.39888211]
[1772436756691,4.78864096,82.95,82.902,2.39888211]
[1772436756692,2.31919476,82.929,82.902,2.39888211]
[1772436758187,2.31919476,82.929,82.904,2.39888211]
[1772436759505,2.31919476,82.929,82.905,14.46088078]
[1772436759906,2.31919476,82.919,82.896,2.39888211]
[1772436761107,2.31919476,82.919,82.896,14.46216518]
[1772436764190,2.31919476,82.917,82.89,2.39888211]
[1772436764407,2.31919476,82.909,82.882,2.39888211]
[1772436764589,2.31919476,82.909,82.881,12.06549148]
[1772436764590,2.31919476,82.929,82.901,2.39888211]
[1772436766209,2.31919476,82.927,82.901,14.46146236]
[1772436767505,2.37329471,82.939,82.911,2.41147994]
[1772436767890,2.37329471,82.938,82.911,2.41147994]
[1772436769418,2.37329471,82.938,82.913,2.41147994]
[1772436769705,2.37329471,82.936,82.913,2.41147994]
[1772436771108,2.37329471,82.936,82.891,60.32017951]
[1772436771109,2.37329471,82.958,82.931,2.41147994]
[1772436772237,2.37329471,82.958,82.932,14.46955161]
[1772436772513,2.37329471,82.958,82.933,2.41147994]
[1772436774311,2.37329471,82.981,82.953,2.41147994]
[1772436774716,2.37329471,82.981,82.952,12.05516443]
[1772436775315,2.37329471,82.981,82.952,14.46664437]
[1772436775922,2.37329471,82.979,82.945,2.41147994]
[1772436776099,2.37329471,82.979,82.951,2.41147994]
[1772436776415,2.37329471,82.979,82.953,2.41147994]
[1772436776815,2.37329471,82.985,82.961,2.41147994]
[1772436778507,2.37329471,82.983,82.952,2.41147994]
[1772436779112,2.37329471,82.979,82.952,2.41147994]
[1772436780022,2.37329471,82.979,82.951,12.05530976]
[1772436780403,2.37329471,82.977,82.946,2.41147994]
[1772436780702,2.37329471,82.969,82.946,2.41147994]
[1772436780919,2.37329471,82.969,82.947,14.46737105]
[1772436781318,2.37329471,82.969,82.948,2.41147994]
[1772436781519,2.37329471,82.977,82.95,4.78605602]
[1772436781717,2.37329471,82.986,82.951,2.41147994]
[1772436782603,2.37329471,82.969,82.911,2.41147994]
[1772436782803,2.37329471,82.959,82.931,2.41147994]
[1772436784024,2.37329471,82.957,82.931,2.41147994]
[1772436785531,2.37329471,82.957,82.925,12.05908761]
[1772436785831,2.37329471,82.957,82.926,2.41147994]
[1772436786327,12.05429253,82.958,82.926,2.41147994]
[1772436786328,4.78605602,82.95,82.926,2.41147994]
[1772436786629,2.37329471,82.949,82.926,2.41147994]
[1772436786934,2.37329471,82.949,82.927,12.0587987]
[1772436787117,2.37329471,82.949,82.927,14.47027864]
[1772436788526,2.37329471,82.949,82.928,2.41147994]
[1772436790127,2.37329471,82.955,82.93,2.41147994]
[1772436790303,2.37329471,82.969,82.931,2.41147994]
[1772436790710,4.78605602,82.96,82.931,2.41147994]
[1772436791026,7.15935073,82.96,82.931,2.41147994]
[1772436791909,2.37329471,82.958,82.933,2.41147994]
[1772436792111,2.37329471,82.958,82.92,4.78605602]
[1772436792112,2.37329471,82.949,82.921,2.41147994]
[1772436792321,2.37329471,82.949,82.922,2.41147994]
[1772436795637,12.05414722,82.959,82.924,2.29536699]
[1772436795638,2.43103641,82.958,82.924,2.29536699]
[1772436796541,4.78605602,82.96,82.931,2.29536699]
[1772436796836,2.43103641,82.958,82.931,2.29536699]
[1772436797830,4.78605602,82.95,82.931,2.29536699]
[1772436798942,2.46675253,82.969,82.933,2.40887221]
[1772436799148,4.78605602,82.96,82.933,2.40887221]
[1772436799441,2.46675253,82.959,82.933,2.40887221]
[1772436799840,2.46675253,82.959,82.927,2.40887221]
[1772436800146,4.78605602,82.95,82.927,2.40887221]
[1772436800437,2.46675253,82.955,82.929,2.40887221]
[1772436801040,2.46675253,82.953,82.929,2.40887221]
[1772436801638,12.05487378,82.954,82.931,2.40887221]